Workbook

Sheet 语言配置表
A1: 序列 | B1: 版本 | C1: 操作人 | D1: 类别/模块 | F1: 注释 | G1: 序列 | I1: 号段 | J1: 10 | K1: 11 | L1: 12 | M1: 13 | N1: 14 | O1: 15 | P1: 16 | Q1: 17 | R1: 18 | S1: 20 | T1: 21 | U1: 22 | V1: 30 | W1: 40 | X1: 50 | Y1: 80 | Z1: 90
D2: 见右边黄色区域 →→ | I2: 类别/模块 | J2: =VLOOKUP(J1,说明页!$B$2:$C$99,2,FALSE) -> 道具 | K2: =VLOOKUP(K1,说明页!$B$2:$C$99,2,FALSE) -> 武器 | L2: =VLOOKUP(L1,说明页!$B$2:$C$99,2,FALSE) -> 秘石 | M2: =VLOOKUP(M1,说明页!$B$2:$C$99,2,FALSE) -> 料理 | N2: =VLOOKUP(N1,说明页!$B$2:$C$99,2,FALSE) -> 地图道具 | O2: =VLOOKUP(O1,说明页!$B$2:$C$99,2,FALSE) -> 遗物 | P2: =VLOOKUP(P1,说明页!$B$2:$C$99,2,FALSE) -> 藏宝图 | Q2: =VLOOKUP(Q1,说明页!$B$2:$C$99,2,FALSE) -> 神器 | R2: =VLOOKUP(R1,说明页!$B$2:$C$99,2,FALSE) -> 材料 | S2: =VLOOKUP(S1,说明页!$B$2:$C$99,2,FALSE) -> 英雄 | T2: =VLOOKUP(T1,说明页!$B$2:$C$99,2,FALSE) -> 怪物 | U2: =VLOOKUP(U1,说明页!$B$2:$C$99,2,FALSE) -> 技能 | V2: =VLOOKUP(V1,说明页!$B$2:$C$99,2,FALSE) -> 任务 | W2: =VLOOKUP(W1,说明页!$B$2:$C$99,2,FALSE) -> UI | X2: =VLOOKUP(X1,说明页!$B$2:$C$99,2,FALSE) -> 战斗 | Y2: =VLOOKUP(Y1,说明页!$B$2:$C$99,2,FALSE) -> 杂项&通用 | Z2: =VLOOKUP(Z1,说明页!$B$2:$C$99,2,FALSE) -> 剧情
I3: 当前号段已用的最大值 新增ID=右侧数字+1 | J3: =MAX(J1*10000,MAX(IF($A:$A<J1*10000+(K1-J1)*10000-1,$A:$A))) -> 100002 | K3: =MAX(K1*10000,MAX(IF($A:$A<K1*10000+(L1-K1)*10000-1,$A:$A))) -> 110000 | L3: =MAX(L1*10000,MAX(IF($A:$A<L1*10000+(M1-L1)*10000-1,$A:$A))) -> 120000 | M3: =MAX(M1*10000,MAX(IF($A:$A<M1*10000+(N1-M1)*10000-1,$A:$A))) -> 130000 | N3: =MAX(N1*10000,MAX(IF($A:$A<N1*10000+(O1-N1)*10000-1,$A:$A))) -> 140000 | O3: =MAX(O1*10000,MAX(IF($A:$A<O1*10000+(P1-O1)*10000-1,$A:$A))) -> 150000 | P3: =MAX(P1*10000,MAX(IF($A:$A<P1*10000+(Q1-P1)*10000-1,$A:$A))) -> 160000 | Q3: =MAX(Q1*10000,MAX(IF($A:$A<Q1*10000+(R1-Q1)*10000-1,$A:$A))) -> 170000 | R3: =MAX(R1*10000,MAX(IF($A:$A<R1*10000+(S1-R1)*10000-1,$A:$A))) -> 180000 | S3: =MAX(S1*10000,MAX(IF($A:$A<S1*10000+(T1-S1)*10000-1,$A:$A))) -> 200000 | T3: =MAX(T1*10000,MAX(IF($A:$A<T1*10000+(U1-T1)*10000-1,$A:$A))) -> 210000 | U3: =MAX(U1*10000,MAX(IF($A:$A<U1*10000+(V1-U1)*10000-1,$A:$A))) -> 220000 | V3: =MAX(V1*10000,MAX(IF($A:$A<V1*10000+(W1-V1)*10000-1,$A:$A))) -> 300000 | W3: =MAX(W1*10000,MAX(IF($A:$A<W1*10000+(X1-W1)*10000-2001,$A:$A))) -> 400000 | X3: =MAX(X1*10000,MAX(IF($A:$A<X1*10000+(Y1-X1)*10000-1,$A:$A))) -> 500000 | Y3: =MAX(Y1*10000,MAX(IF($A:$A<Y1*10000+(Z1-Y1)*10000-1,$A:$A))) -> 800000 | Z3: =MAX(Z1*10000,MAX(IF($A:$A<Z1*10000+(Z1)*10000-1,$A:$A))) -> 900000
A4: 100001 | C4: 邹舸 | D4: 道具 | E4: 金币 | G4: =IF(A4="","",A4) -> 100001
A5: 100002 | C5: 邹舸 | D5: 道具 | E5: 道具

Sheet LanguageChineseConfig
A1: ID | B1: txt
A2: int | B2: string
A4: ID | B4: 文本内容
A5: =IF(语言配置表!A4="","",语言配置表!A4) -> 100001 | B5: =IF(语言配置表!A4="","CN_待填充内容",语言配置表!E4) -> 金币
A6: =IF(语言配置表!A5="","",语言配置表!A5) -> 100002 | B6: =IF(语言配置表!A5="","CN_待填充内容",语言配置表!E5) -> 道具

Sheet 说明页
A1: 大模块 | B1: 小模块 | C1: 类别/模块说明 | D1: 同模块下如果需要细分可以新增小类，以进行区别 新增后一定通知邹舸加监测，否则语言表ID号段监听会失效！！ | E1: UI文本按照系统分配ID段，每个ID段默认占用100个ID，如果觉得需要可以预留，请新加UI的策划都在这里申明ID段 | G1: 已用最大值 | H1: 战斗文本按照系统分配ID段，每个ID段默认占用100个ID，如果觉得需要可以预留，请新加UI的策划都在这里申明ID段 | J1: 已用最大值
A2: 道具模块 | B2: 10 | C2: 道具 | E2: 401001-401100 | F2: 招募 | G2: =MAX(INT(LEFT(E2,6)),MAX(IF(语言配置表!$A:$A<INT(RIGHT(E2,6)),语言配置表!$A:$A))) -> 401001 | H2: 500001-501000 | I2: 战斗技能/BUFF | J2: =MAX(INT(LEFT(H2,6)),MAX(IF(语言配置表!$A:$A<INT(RIGHT(H2,6)),语言配置表!$A:$A))) -> 500001
B3: 11 | C3: 武器 | E3: 401101-401200 | F3: 卡池信息文本 | G3: =MAX(INT(LEFT(E3,6)),MAX(IF(语言配置表!$A:$A<INT(RIGHT(E3,6)),语言配置表!$A:$A))) -> 401101 | H3: 501001-501200 | I3: 选拔赛 | J3: =MAX(INT(LEFT(H3,6)),MAX(IF(语言配置表!$A:$A<INT(RIGHT(H3,6)),语言配置表!$A:$A))) -> 501001
B4: 12 | C4: 秘石 | E4: 401201-401400 | F4: 冒险相关UI文本 | G4: =MAX(INT(LEFT(E4,6)),MAX(IF(语言配置表!$A:$A<INT(RIGHT(E4,6)),语言配置表!$A:$A))) -> 401201 | H4: 501201-501400 | I4: 资源本 | J4: =MAX(INT(LEFT(H4,6)),MAX(IF(语言配置表!$A:$A<INT(RIGHT(H4,6)),语言配置表!$A:$A))) -> 501201
B5: 13 | C5: 料理 | E5: 401401-401600 | F5: 商业街 | G5: =MAX(INT(LEFT(E5,6)),MAX(IF(语言配置表!$A:$A<INT(RIGHT(E5,6)),语言配置表!$A:$A))) -> 401401
B6: 14 | C6: 地图道具 | E6: 401601-401700 | F6: 背包 | G6: =MAX(INT(LEFT(E6,6)),MAX(IF(语言配置表!$A:$A<INT(RIGHT(E6,6)),语言配置表!$A:$A))) -> 401601
B7: 15 | C7: 遗物 | E7: 401701-401800 | F7: 编队和队伍预设 | G7: =MAX(INT(LEFT(E7,6)),MAX(IF(语言配置表!$A:$A<INT(RIGHT(E7,6)),语言配置表!$A:$A))) -> 401701
B8: 16 | C8: 藏宝图 | E8: 401801-402000 | F8: 英雄养成 | G8: =MAX(INT(LEFT(E8,6)),MAX(IF(语言配置表!$A:$A<INT(RIGHT(E8,6)),语言配置表!$A:$A))) -> 401801
B9: 17 | C9: 神器 | E9: 402001-402100 | F9: 商城 | G9: =MAX(INT(LEFT(E9,6)),MAX(IF(语言配置表!$A:$A<INT(RIGHT(E9,6)),语言配置表!$A:$A))) -> 402001
B10: 18 | C10: 材料 | E10: 403001-403100 | F10: 主界面/账号 | G10: =MAX(INT(LEFT(E10,6)),MAX(IF(语言配置表!$A:$A<INT(RIGHT(E10,6)),语言配置表!$A:$A))) -> 403001
B11: 19 | E11: 402101-402200 | F11: 秘石&符文 | G11: =MAX(INT(LEFT(E11,6)),MAX(IF(语言配置表!$A:$A<INT(RIGHT(E11,6)),语言配置表!$A:$A))) -> 402101
A12: 英雄模块 | B12: 20 | C12: 英雄 | E12: 400001-400100 | F12: 通用UI | G12: =MAX(INT(LEFT(E12,6)),MAX(IF(语言配置表!$A:$A<INT(RIGHT(E12,6)),语言配置表!$A:$A))) -> 400001
B13: 21 | C13: 怪物 | E13: 402201-402300 | F13: 藏宝图 | G13: =MAX(INT(LEFT(E13,6)),MAX(IF(语言配置表!$A:$A<INT(RIGHT(E13,6)),语言配置表!$A:$A))) -> 402201
B14: 22 | C14: 技能 | E14: 402301-402400 | F14: 商业街 | G14: =MAX(INT(LEFT(E14,6)),MAX(IF(语言配置表!$A:$A<INT(RIGHT(E14,6)),语言配置表!$A:$A))) -> 402301
A15: 任务模块 | B15: 30 | C15: 任务 | E15: 402401-402500 | F15: 聊天&好友 | G15: =MAX(INT(LEFT(E15,6)),MAX(IF(语言配置表!$A:$A<INT(RIGHT(E15,6)),语言配置表!$A:$A))) -> 402401
A16: UI模块 | B16: 40 | C16: UI | E16: 402501-402600 | F16: 共斗 | G16: =MAX(INT(LEFT(E16,6)),MAX(IF(语言配置表!$A:$A<INT(RIGHT(E16,6)),语言配置表!$A:$A))) -> 402501
A17: 战斗模块 | B17: 50 | C17: 战斗 | E17: 498001-499999 | F17: 新手引导 | G17: =MAX(INT(LEFT(E17,6)),MAX(IF(语言配置表!$A:$A<INT(RIGHT(E17,6)),语言配置表!$A:$A))) -> 498001
A18: 通用模块 | B18: 80 | C18: 杂项&通用
A19: 剧情模块 | B19: 90 | C19: 剧情
E28: 200+ | F28: 英雄名
E29: 201+ | F29: 英雄称号
E30: 202+ | F30: 英雄台词
E31: 203+ | F31: 英雄道具说明
E32: 204+ | F32: 英雄碎片道具
E33: 205+ | F33: 英雄碎片道具说明
E35: 字段关联表缩写字母 | F35: 关联表
E36: l | F36: LanguageChinese
E37: w | F37: Item
E38: c | F38: chouka
E42: 300001-301000 | F42: 悬赏任务（少量混杂冒险地图内任务）
E43: 301001-310000 | F43: 冒险地图内任务
E44: 310001- | F44: 周常日常等任务

Sheet 关卡内常用
A1: ID | B1: 文本内容 | C1: 哪儿用到
A2: 140025 | B2: =VLOOKUP(A2,语言配置表!$A$1:$E$9722,5,0) ->  | C2: 石碑机关用 | G2: 离魂三角铁 | H2: 致命体验 | L2: 101126 | M2: =COUNTIF(语言配置表!A:A,关卡内常用!L2) -> 0
A3: 900453 | B3: =VLOOKUP(A3,语言配置表!$A$1:$E$9722,5,0) ->  | C3: 对话常用 | G3: 冥河的引航灯 | L3: 101125 | M3: =COUNTIF(语言配置表!A:A,关卡内常用!L3) -> 0
A4: 900124 | B4: =VLOOKUP(A4,语言配置表!$A$1:$E$9722,5,0) ->  | C4: 篝火 | G4: 彼岸之花 | L4: 101124 | M4: =COUNTIF(语言配置表!A:A,关卡内常用!L4) -> 0
A5: 900125 | B5: =VLOOKUP(A5,语言配置表!$A$1:$E$9722,5,0) ->  | C5: 篝火 | G5: 剧毒研磨皿 | L5: 101123 | M5: =COUNTIF(语言配置表!A:A,关卡内常用!L5) -> 0
A6: 900478 | B6: =VLOOKUP(A6,语言配置表!$A$1:$E$9722,5,0) ->  | C6: 藏宝图挖掘玩法倒计时开始提示 | G6: 震魂手鼓 | H6: 强者之魂 | L6: 101122 | M6: =COUNTIF(语言配置表!A:A,关卡内常用!L6) -> 0
A7: 900460 | B7: =VLOOKUP(A7,语言配置表!$A$1:$E$9722,5,0) ->  | C7: 挖掘刷精英怪 | G7: 不熄之桶 | L7: 101121 | M7: =COUNTIF(语言配置表!A:A,关卡内常用!L7) -> 0
A8: 900465 | B8: =VLOOKUP(A8,语言配置表!$A$1:$E$9722,5,0) ->  | C8: 挖掘刷BOSS | G8: 躁动焚香 | L8: 101120 | M8: =COUNTIF(语言配置表!A:A,关卡内常用!L8) -> 0
A9: 900503 | B9: =VLOOKUP(A9,语言配置表!$A$1:$E$9722,5,0) ->  | C9: 复活 | G9: 爆裂留声机 | L9: 101119 | M9: =COUNTIF(语言配置表!A:A,关卡内常用!L9) -> 0
A10: 900979 | B10: =VLOOKUP(A10,语言配置表!$A$1:$E$9722,5,0) ->  | C10: 藏宝图被炸到掉贝壳 | G10: 仍在走动的计时器 | H10: 爆破专家 | L10: 101118 | M10: =COUNTIF(语言配置表!A:A,关卡内常用!L10) -> 0
G11: 机械式打火机 | L11: 101117 | M11: =COUNTIF(语言配置表!A:A,关卡内常用!L11) -> 0
G12: 硫磺粉末 | L12: 101116 | M12: =COUNTIF(语言配置表!A:A,关卡内常用!L12) -> 0
G13: 爆破雷管 | L13: 101115 | M13: =COUNTIF(语言配置表!A:A,关卡内常用!L13) -> 0
G14: 寒风唱机 | H14: 冰冷笑话 | L14: 101114 | M14: =COUNTIF(语言配置表!A:A,关卡内常用!L14) -> 0
G15: 速冻烈焰 | L15: 101113 | M15: =COUNTIF(语言配置表!A:A,关卡内常用!L15) -> 0
G16: “凌冽”香水 | L16: 101112 | M16: =COUNTIF(语言配置表!A:A,关卡内常用!L16) -> 0
G17: 冷饮制造器 | L17: 101111 | M17: =COUNTIF(语言配置表!A:A,关卡内常用!L17) -> 0
G18: 春醒之弦 | H18: 破茧成蝶 | L18: 101110 | M18: =COUNTIF(语言配置表!A:A,关卡内常用!L18) -> 0
G19: 扑火之光 | L19: 101109 | M19: =COUNTIF(语言配置表!A:A,关卡内常用!L19) -> 0
G20: 孕育之露 | L20: 101108 | M20: =COUNTIF(语言配置表!A:A,关卡内常用!L20) -> 0
G21: 蛰伏之匣 | L21: 101107 | M21: =COUNTIF(语言配置表!A:A,关卡内常用!L21) -> 0
G22: 地牛号角 | H22: 三百勇士 | L22: 101106 | M22: =COUNTIF(语言配置表!A:A,关卡内常用!L22) -> 0
G23: 焦油火把 | L23: 101105 | M23: =COUNTIF(语言配置表!A:A,关卡内常用!L23) -> 0
G24: 涂满药膏的绷带 | L24: 101104 | M24: =COUNTIF(语言配置表!A:A,关卡内常用!L24) -> 0
G25: 骨灰瓮 | L25: 101103 | M25: =COUNTIF(语言配置表!A:A,关卡内常用!L25) -> 0
G26: 舒心留声机 | H26: 天才的抚慰 | L26: 101102 | M26: =COUNTIF(语言配置表!A:A,关卡内常用!L26) -> 0
G27: 和煦随身炉 | L27: 101101 | M27: =COUNTIF(语言配置表!A:A,关卡内常用!L27) -> 0
G28: 宁神试剂 | L28: 101100 | M28: =COUNTIF(语言配置表!A:A,关卡内常用!L28) -> 0
G29: 惊奇收纳盒 | L29: 101099 | M29: =COUNTIF(语言配置表!A:A,关卡内常用!L29) -> 0
G30: 鸣沙瓶 | H30: 坚若磐石 | L30: 101098 | M30: =COUNTIF(语言配置表!A:A,关卡内常用!L30) -> 0
G31: 莹矿原石 | L31: 101097 | M31: =COUNTIF(语言配置表!A:A,关卡内常用!L31) -> 0
G32: 熏香玉丸 | L32: 101096 | M32: =COUNTIF(语言配置表!A:A,关卡内常用!L32) -> 0
G33: 机关石匣 | L33: 101095 | M33: =COUNTIF(语言配置表!A:A,关卡内常用!L33) -> 0
G34: 银质陀飞轮 | H34: 永动机器 | L34: 101094 | M34: =COUNTIF(语言配置表!A:A,关卡内常用!L34) -> 0
G35: 永恒辉光管 | L35: 101093 | M35: =COUNTIF(语言配置表!A:A,关卡内常用!L35) -> 0
G36: 电子拟态香水 | L36: 101092 | M36: =COUNTIF(语言配置表!A:A,关卡内常用!L36) -> 0
G37: 微型约束磁场 | L37: 101091 | M37: =COUNTIF(语言配置表!A:A,关卡内常用!L37) -> 0
G38: 呼唤灵兽的哨子 | H38: 意外的发现 | L38: 101090 | M38: =COUNTIF(语言配置表!A:A,关卡内常用!L38) -> 0
G39: 萤光虫卵 | L39: 101089 | M39: =COUNTIF(语言配置表!A:A,关卡内常用!L39) -> 0
G40: 炎烧杖 | L40: 101088 | M40: =COUNTIF(语言配置表!A:A,关卡内常用!L40) -> 0
G41: 炼金坩埚 | L41: 101087 | M41: =COUNTIF(语言配置表!A:A,关卡内常用!L41) -> 0
G42: 巨大海螺 | H42: 共生 | L42: 101086 | M42: =COUNTIF(语言配置表!A:A,关卡内常用!L42) -> 0
G43: 微光珊瑚 | L43: 101085 | M43: =COUNTIF(语言配置表!A:A,关卡内常用!L43) -> 0
G44: 海风提取剂 | L44: 101084 | M44: =COUNTIF(语言配置表!A:A,关卡内常用!L44) -> 0
G45: 寄居蟹盒子 | L45: 101083 | M45: =COUNTIF(语言配置表!A:A,关卡内常用!L45) -> 0
G46: 异域短笛 | H46: 召唤大师 | L46: 101082 | M46: =COUNTIF(语言配置表!A:A,关卡内常用!L46) -> 0
G47: 晶莹琥珀 | L47: 101081 | M47: =COUNTIF(语言配置表!A:A,关卡内常用!L47) -> 0
G48: 引魂线香 | L48: 101080 | M48: =COUNTIF(语言配置表!A:A,关卡内常用!L48) -> 0
G49: 妖怪手账 | L49: 101079 | M49: =COUNTIF(语言配置表!A:A,关卡内常用!L49) -> 0
L50: 101078 | M50: =COUNTIF(语言配置表!A:A,关卡内常用!L50) -> 0
L51: 101077 | M51: =COUNTIF(语言配置表!A:A,关卡内常用!L51) -> 0
L52: 101076 | M52: =COUNTIF(语言配置表!A:A,关卡内常用!L52) -> 0
L53: 101075 | M53: =COUNTIF(语言配置表!A:A,关卡内常用!L53) -> 0
L54: 101074 | M54: =COUNTIF(语言配置表!A:A,关卡内常用!L54) -> 0
L55: 101073 | M55: =COUNTIF(语言配置表!A:A,关卡内常用!L55) -> 0
L56: 101072 | M56: =COUNTIF(语言配置表!A:A,关卡内常用!L56) -> 0
L57: 101071 | M57: =COUNTIF(语言配置表!A:A,关卡内常用!L57) -> 0
L58: 101070 | M58: =COUNTIF(语言配置表!A:A,关卡内常用!L58) -> 0
L59: 101069 | M59: =COUNTIF(语言配置表!A:A,关卡内常用!L59) -> 0
L60: 101068 | M60: =COUNTIF(语言配置表!A:A,关卡内常用!L60) -> 0
L61: 101067 | M61: =COUNTIF(语言配置表!A:A,关卡内常用!L61) -> 0
L62: 101066 | M62: =COUNTIF(语言配置表!A:A,关卡内常用!L62) -> 0
L63: 101065 | M63: =COUNTIF(语言配置表!A:A,关卡内常用!L63) -> 0
L64: 101064 | M64: =COUNTIF(语言配置表!A:A,关卡内常用!L64) -> 0
L65: 101063 | M65: =COUNTIF(语言配置表!A:A,关卡内常用!L65) -> 0
L66: 101062 | M66: =COUNTIF(语言配置表!A:A,关卡内常用!L66) -> 0
L67: 101061 | M67: =COUNTIF(语言配置表!A:A,关卡内常用!L67) -> 0
L68: 101060 | M68: =COUNTIF(语言配置表!A:A,关卡内常用!L68) -> 0
L69: 101059 | M69: =COUNTIF(语言配置表!A:A,关卡内常用!L69) -> 0
L70: 101058 | M70: =COUNTIF(语言配置表!A:A,关卡内常用!L70) -> 0
L71: 101057 | M71: =COUNTIF(语言配置表!A:A,关卡内常用!L71) -> 0
L72: 101056 | M72: =COUNTIF(语言配置表!A:A,关卡内常用!L72) -> 0
L73: 101055 | M73: =COUNTIF(语言配置表!A:A,关卡内常用!L73) -> 0
L74: 101054 | M74: =COUNTIF(语言配置表!A:A,关卡内常用!L74) -> 0
L75: 101053 | M75: =COUNTIF(语言配置表!A:A,关卡内常用!L75) -> 0
L76: 101052 | M76: =COUNTIF(语言配置表!A:A,关卡内常用!L76) -> 0
L77: 101051 | M77: =COUNTIF(语言配置表!A:A,关卡内常用!L77) -> 0
L78: 101050 | M78: =COUNTIF(语言配置表!A:A,关卡内常用!L78) -> 0
L79: 101049 | M79: =COUNTIF(语言配置表!A:A,关卡内常用!L79) -> 0
L80: 101048 | M80: =COUNTIF(语言配置表!A:A,关卡内常用!L80) -> 0
L81: 101047 | M81: =COUNTIF(语言配置表!A:A,关卡内常用!L81) -> 0
L82: 101046 | M82: =COUNTIF(语言配置表!A:A,关卡内常用!L82) -> 0
L83: 101045 | M83: =COUNTIF(语言配置表!A:A,关卡内常用!L83) -> 0
L84: 101044 | M84: =COUNTIF(语言配置表!A:A,关卡内常用!L84) -> 0
L85: 101043 | M85: =COUNTIF(语言配置表!A:A,关卡内常用!L85) -> 0
L86: 101042 | M86: =COUNTIF(语言配置表!A:A,关卡内常用!L86) -> 0
L87: 101041 | M87: =COUNTIF(语言配置表!A:A,关卡内常用!L87) -> 0
L88: 101040 | M88: =COUNTIF(语言配置表!A:A,关卡内常用!L88) -> 0
L89: 101039 | M89: =COUNTIF(语言配置表!A:A,关卡内常用!L89) -> 0
L90: 101038 | M90: =COUNTIF(语言配置表!A:A,关卡内常用!L90) -> 0
L91: 101037 | M91: =COUNTIF(语言配置表!A:A,关卡内常用!L91) -> 0
L92: 101036 | M92: =COUNTIF(语言配置表!A:A,关卡内常用!L92) -> 0
L93: 101035 | M93: =COUNTIF(语言配置表!A:A,关卡内常用!L93) -> 0
L94: 101034 | M94: =COUNTIF(语言配置表!A:A,关卡内常用!L94) -> 0
L95: 101033 | M95: =COUNTIF(语言配置表!A:A,关卡内常用!L95) -> 0
L96: 101032 | M96: =COUNTIF(语言配置表!A:A,关卡内常用!L96) -> 0
L97: 101031 | M97: =COUNTIF(语言配置表!A:A,关卡内常用!L97) -> 0
L98: 101030 | M98: =COUNTIF(语言配置表!A:A,关卡内常用!L98) -> 0
L99: 101029 | M99: =COUNTIF(语言配置表!A:A,关卡内常用!L99) -> 0
L100: 101028 | M100: =COUNTIF(语言配置表!A:A,关卡内常用!L100) -> 0
L101: 101027 | M101: =COUNTIF(语言配置表!A:A,关卡内常用!L101) -> 0
L102: 101026 | M102: =COUNTIF(语言配置表!A:A,关卡内常用!L102) -> 0
L103: 101025 | M103: =COUNTIF(语言配置表!A:A,关卡内常用!L103) -> 0
L104: 101024 | M104: =COUNTIF(语言配置表!A:A,关卡内常用!L104) -> 0
L105: 101023 | M105: =COUNTIF(语言配置表!A:A,关卡内常用!L105) -> 0
L106: 101022 | M106: =COUNTIF(语言配置表!A:A,关卡内常用!L106) -> 0
L107: 101021 | M107: =COUNTIF(语言配置表!A:A,关卡内常用!L107) -> 0
L108: 101020 | M108: =COUNTIF(语言配置表!A:A,关卡内常用!L108) -> 0
L109: 101019 | M109: =COUNTIF(语言配置表!A:A,关卡内常用!L109) -> 0
L110: 101018 | M110: =COUNTIF(语言配置表!A:A,关卡内常用!L110) -> 0
L111: 101017 | M111: =COUNTIF(语言配置表!A:A,关卡内常用!L111) -> 0
L112: 101016 | M112: =COUNTIF(语言配置表!A:A,关卡内常用!L112) -> 0
L113: 101015 | M113: =COUNTIF(语言配置表!A:A,关卡内常用!L113) -> 0
L114: 101014 | M114: =COUNTIF(语言配置表!A:A,关卡内常用!L114) -> 0
L115: 101013 | M115: =COUNTIF(语言配置表!A:A,关卡内常用!L115) -> 0
L116: 101012 | M116: =COUNTIF(语言配置表!A:A,关卡内常用!L116) -> 0
L117: 101011 | M117: =COUNTIF(语言配置表!A:A,关卡内常用!L117) -> 0
L118: 101010 | M118: =COUNTIF(语言配置表!A:A,关卡内常用!L118) -> 0
L119: 101009 | M119: =COUNTIF(语言配置表!A:A,关卡内常用!L119) -> 0
L120: 101008 | M120: =COUNTIF(语言配置表!A:A,关卡内常用!L120) -> 0
L121: 101007 | M121: =COUNTIF(语言配置表!A:A,关卡内常用!L121) -> 0
L122: 101006 | M122: =COUNTIF(语言配置表!A:A,关卡内常用!L122) -> 0
L123: 101005 | M123: =COUNTIF(语言配置表!A:A,关卡内常用!L123) -> 0
L124: 101004 | M124: =COUNTIF(语言配置表!A:A,关卡内常用!L124) -> 0
L125: 101003 | M125: =COUNTIF(语言配置表!A:A,关卡内常用!L125) -> 0
L126: 101002 | M126: =COUNTIF(语言配置表!A:A,关卡内常用!L126) -> 0
L127: 101001 | M127: =COUNTIF(语言配置表!A:A,关卡内常用!L127) -> 0
L128: 101000 | M128: =COUNTIF(语言配置表!A:A,关卡内常用!L128) -> 0
L129: 100999 | M129: =COUNTIF(语言配置表!A:A,关卡内常用!L129) -> 0
L130: 100998 | M130: =COUNTIF(语言配置表!A:A,关卡内常用!L130) -> 0
L131: 100997 | M131: =COUNTIF(语言配置表!A:A,关卡内常用!L131) -> 0
L132: 100996 | M132: =COUNTIF(语言配置表!A:A,关卡内常用!L132) -> 0
L133: 100995 | M133: =COUNTIF(语言配置表!A:A,关卡内常用!L133) -> 0
L134: 100994 | M134: =COUNTIF(语言配置表!A:A,关卡内常用!L134) -> 0
L135: 100993 | M135: =COUNTIF(语言配置表!A:A,关卡内常用!L135) -> 0
L136: 100992 | M136: =COUNTIF(语言配置表!A:A,关卡内常用!L136) -> 0
L137: 100991 | M137: =COUNTIF(语言配置表!A:A,关卡内常用!L137) -> 0
L138: 100990 | M138: =COUNTIF(语言配置表!A:A,关卡内常用!L138) -> 0
L139: 100989 | M139: =COUNTIF(语言配置表!A:A,关卡内常用!L139) -> 0
L140: 100988 | M140: =COUNTIF(语言配置表!A:A,关卡内常用!L140) -> 0
L141: 100987 | M141: =COUNTIF(语言配置表!A:A,关卡内常用!L141) -> 0
L142: 100986 | M142: =COUNTIF(语言配置表!A:A,关卡内常用!L142) -> 0
L143: 100985 | M143: =COUNTIF(语言配置表!A:A,关卡内常用!L143) -> 0
L144: 100984 | M144: =COUNTIF(语言配置表!A:A,关卡内常用!L144) -> 0
L145: 100983 | M145: =COUNTIF(语言配置表!A:A,关卡内常用!L145) -> 0
L146: 100982 | M146: =COUNTIF(语言配置表!A:A,关卡内常用!L146) -> 0
L147: 100981 | M147: =COUNTIF(语言配置表!A:A,关卡内常用!L147) -> 0
L148: 100980 | M148: =COUNTIF(语言配置表!A:A,关卡内常用!L148) -> 0
L149: 100979 | M149: =COUNTIF(语言配置表!A:A,关卡内常用!L149) -> 0
L150: 100978 | M150: =COUNTIF(语言配置表!A:A,关卡内常用!L150) -> 0
L151: 100977 | M151: =COUNTIF(语言配置表!A:A,关卡内常用!L151) -> 0
L152: 100976 | M152: =COUNTIF(语言配置表!A:A,关卡内常用!L152) -> 0
L153: 100975 | M153: =COUNTIF(语言配置表!A:A,关卡内常用!L153) -> 0
L154: 100974 | M154: =COUNTIF(语言配置表!A:A,关卡内常用!L154) -> 0
L155: 100973 | M155: =COUNTIF(语言配置表!A:A,关卡内常用!L155) -> 0
L156: 100972 | M156: =COUNTIF(语言配置表!A:A,关卡内常用!L156) -> 0
L157: 100971 | M157: =COUNTIF(语言配置表!A:A,关卡内常用!L157) -> 0
L158: 100970 | M158: =COUNTIF(语言配置表!A:A,关卡内常用!L158) -> 0
L159: 100969 | M159: =COUNTIF(语言配置表!A:A,关卡内常用!L159) -> 0
L160: 100968 | M160: =COUNTIF(语言配置表!A:A,关卡内常用!L160) -> 0
L161: 100967 | M161: =COUNTIF(语言配置表!A:A,关卡内常用!L161) -> 0
L162: 100966 | M162: =COUNTIF(语言配置表!A:A,关卡内常用!L162) -> 0
L163: 100965 | M163: =COUNTIF(语言配置表!A:A,关卡内常用!L163) -> 0
L164: 100964 | M164: =COUNTIF(语言配置表!A:A,关卡内常用!L164) -> 0
L165: 100963 | M165: =COUNTIF(语言配置表!A:A,关卡内常用!L165) -> 0
L166: 100962 | M166: =COUNTIF(语言配置表!A:A,关卡内常用!L166) -> 0
L167: 100961 | M167: =COUNTIF(语言配置表!A:A,关卡内常用!L167) -> 0
L168: 100960 | M168: =COUNTIF(语言配置表!A:A,关卡内常用!L168) -> 0
L169: 100959 | M169: =COUNTIF(语言配置表!A:A,关卡内常用!L169) -> 0
L170: 100958 | M170: =COUNTIF(语言配置表!A:A,关卡内常用!L170) -> 0
L171: 100957 | M171: =COUNTIF(语言配置表!A:A,关卡内常用!L171) -> 0
L172: 100956 | M172: =COUNTIF(语言配置表!A:A,关卡内常用!L172) -> 0
L173: 100955 | M173: =COUNTIF(语言配置表!A:A,关卡内常用!L173) -> 0
L174: 100954 | M174: =COUNTIF(语言配置表!A:A,关卡内常用!L174) -> 0
L175: 100953 | M175: =COUNTIF(语言配置表!A:A,关卡内常用!L175) -> 0
L176: 100952 | M176: =COUNTIF(语言配置表!A:A,关卡内常用!L176) -> 0
L177: 100951 | M177: =COUNTIF(语言配置表!A:A,关卡内常用!L177) -> 0
L178: 100950 | M178: =COUNTIF(语言配置表!A:A,关卡内常用!L178) -> 0
L179: 100949 | M179: =COUNTIF(语言配置表!A:A,关卡内常用!L179) -> 0
L180: 100948 | M180: =COUNTIF(语言配置表!A:A,关卡内常用!L180) -> 0
L181: 100947 | M181: =COUNTIF(语言配置表!A:A,关卡内常用!L181) -> 0
L182: 100946 | M182: =COUNTIF(语言配置表!A:A,关卡内常用!L182) -> 0
L183: 100945 | M183: =COUNTIF(语言配置表!A:A,关卡内常用!L183) -> 0
L184: 100944 | M184: =COUNTIF(语言配置表!A:A,关卡内常用!L184) -> 0
L185: 100943 | M185: =COUNTIF(语言配置表!A:A,关卡内常用!L185) -> 0
L186: 100942 | M186: =COUNTIF(语言配置表!A:A,关卡内常用!L186) -> 0
L187: 100941 | M187: =COUNTIF(语言配置表!A:A,关卡内常用!L187) -> 0
L188: 100940 | M188: =COUNTIF(语言配置表!A:A,关卡内常用!L188) -> 0
L189: 100939 | M189: =COUNTIF(语言配置表!A:A,关卡内常用!L189) -> 0
L190: 100938 | M190: =COUNTIF(语言配置表!A:A,关卡内常用!L190) -> 0
L191: 100937 | M191: =COUNTIF(语言配置表!A:A,关卡内常用!L191) -> 0
L192: 100936 | M192: =COUNTIF(语言配置表!A:A,关卡内常用!L192) -> 0
L193: 100935 | M193: =COUNTIF(语言配置表!A:A,关卡内常用!L193) -> 0
L194: 100934 | M194: =COUNTIF(语言配置表!A:A,关卡内常用!L194) -> 0
L195: 100933 | M195: =COUNTIF(语言配置表!A:A,关卡内常用!L195) -> 0
L196: 100932 | M196: =COUNTIF(语言配置表!A:A,关卡内常用!L196) -> 0
L197: 100931 | M197: =COUNTIF(语言配置表!A:A,关卡内常用!L197) -> 0
L198: 100930 | M198: =COUNTIF(语言配置表!A:A,关卡内常用!L198) -> 0
L199: 100929 | M199: =COUNTIF(语言配置表!A:A,关卡内常用!L199) -> 0
L200: 100928 | M200: =COUNTIF(语言配置表!A:A,关卡内常用!L200) -> 0
... 927 more rows
